[Event "Croatian-ch Youth U15 2022"]
[Site "Trogir"]
[Date "2022.06.24"]
[Round "4.2"]
[White "Gal, Andrej"]
[Black "Sundac, Ivano"]
[Result "1/2-1/2"]
[ECO "E46"]
[WhiteElo "1874"]
[BlackElo "1978"]
[Annotator "TA"]
[PlyCount "100"]
[EventDate "2022.06.22"]
[EventType "swiss"]
[EventCountry "CRO"]
[SourceTitle "playchess.com"]
[Source "ChessBase"]
[SourceQuality "1"]
[TimeControl "5400+30"]

{[%evp 14,100,6,-5,-4,0,-6,-8,0,-13,0,-26,-31,-50,13,12,17,0,0,1,52,7,19,0,32,0,34,35,36,18,44,43,43,42,47,50,50,33,50,22,30,28,31,28,48,46,61,37,51,53,57,46,52,52,57,57,56,35,35,35,35,35,37,35,37,37,37,35,35,35,35,35,55,55,55,55,55,0,55,0,55,27,55,13,55,55,55,55,43]} 1. d4 {[%emt 0:00:03]} Nf6 {[%emt 0:00:04]} 2. c4 {[%emt 0:00:06]} e6 {[%emt 0:00:03]} 3. Nc3 {[%emt 0:00:04]} Bb4 {[%emt 0:00:04]} 4. e3 {[%emt 0:00:06]} O-O {[%emt 0:00:16]} 5. Nge2 {[%emt 0:01:58]} d5 {[%emt 0:00:58]} 6. a3 {[%emt 0:00:00]} Be7 {[%emt 0:00:06]} 7. cxd5 {[%emt 0:00:46]} exd5 {[%emt 0:00:06]} 8. Ng3 {[%emt 0:01:09]} c6 {[%emt 0:00:46] E46: Nimzo-Indian: Rubinstein: 4 e3 0-0 5 Ne2 without early Bd3.} 9. Bd3 {[%emt 0:00:49]} Re8 {[%emt 0:00:58]} 10. O-O {[%emt 0:00:20]} Nbd7 {[%emt 0:01:47] The position is equal.} 11. Bd2 {[%emt 0:01:25]} Nf8 {[%emt 0:01:25] [#]} 12. Na4 $146 {[%emt 0:04:54]} ({Predecessor:} 12. Be1 g6 13. f3 c5 14. Bf2 cxd4 15. exd4 Ne6 16. Re1 a6 17. Rc1 h5 18. Qb3 {0-1 (61) Makarenko,A (2215)-Zhukov,A (2076) Moscow 2019}) 12... Bd6 {[%emt 0:01:53]} 13. Bb4 {[%emt 0:05:42]} Bxb4 {[%emt 0:03:23]} ({Black should try} 13... Bb8 $15) 14. axb4 $11 {[%emt 0:00:01]} a6 {[%emt 0:08:23] Prevents b5.} 15. Qc2 {[%emt 0:02:25]} g6 {[%emt 0:02:51]} 16. Nc5 {[%emt 0:01:16][%cal Ob4b5]} Qb6 {[%emt 0:01:12] Prevents b5.} (16... Rb8 $11) 17. Qa4 {[%emt 0:02:58][%cal Ob4b5]} Ne6 {[%emt 0:01:17]} 18. Rfc1 {[%emt 0:02:27][%cal Ob4b5]} Bd7 {[%emt 0:02:18]} 19. Ne2 {[%emt 0:05:56]} Nxc5 {[%emt 0:02:59]} 20. bxc5 {[%emt 0:00:46]} Qc7 {[%emt 0:01:13]} 21. Qa5 {[%emt 0:02:32]} Rac8 {[%emt 0:05:18]} 22. Qxc7 {[%emt 0:00:13]} Rxc7 {[%emt 0:00:03]} 23. Nc3 {[%emt 0:01:03]} Re7 {[%emt 0:02:00]} 24. Ra3 {[%emt 0:01:08]} Kf8 {[%emt 0:02:04]} 25. Nd1 {[%emt 0:01:34]} Ke8 {[%emt 0:02:42]} 26. f3 {[%emt 0:00:20]} Be6 {[%emt 0:01:03]} 27. Kf2 {[%emt 0:00:10]} Rcd7 {[%emt 0:00:55]} 28. Nc3 {[%emt 0:00:18]} Kd8 {[%emt 0:01:49]} 29. h3 {[%emt 0:00:36]} Ne8 {[%emt 0:00:43]} 30. Rb3 {[%emt 0:01:01] White is more active.} f5 {[%emt 0:00:57]} 31. Ne2 {[%emt 0:02:50]} Ng7 {[%emt 0:01:38]} 32. Rb6 {[%emt 0:01:26]} Rc7 {[%emt 0:00:31]} 33. Bb1 {[%emt 0:01:21]} Bc8 {[%emt 0:01:17]} 34. Nf4 {[%emt 0:00:29]} Ne6 {[%emt 0:01:07]} 35. g3 {[%emt 0:00:54]} Nxf4 {[%emt 0:00:06]} 36. gxf4 {[%emt 0:00:02]} Re6 {[%emt 0:00:30]} 37. Rb3 {[%emt 0:00:19]} Rce7 {[%emt 0:00:19]} 38. Rbc3 {[%emt 0:01:31]} Re8 {[%emt 0:01:02]} 39. h4 {[%emt 0:00:33]} Ke7 {[%emt 0:00:42]} 40. R3c2 {[%emt 0:01:03]} Kf6 {[%emt 0:00:12]} 41. Re2 {[%emt 0:00:16]} R6e7 {[%emt 0:01:19]} 42. Rg1 {[%emt 0:00:57]} h5 {[%emt 0:01:40]} 43. Rge1 {[%emt 0:01:06]} Rd8 {[%emt 0:00:43]} 44. Rd2 {[%emt 0:01:31]} Rde8 {[%emt 0:00:28]} 45. Rde2 {[%emt 0:00:41]} Rd8 $1 {[%emt 0:00:06]} 46. Rg1 {[%emt 0:00:04]} Rde8 $1 {[%emt 0:00:10]} 47. Ree1 {[%emt 0:00:07]} Bd7 {[%emt 0:01:08][%cal Ob7b6]} 48. Rg5 {[%emt 0:00:10]} Bc8 {[%emt 0:00:29]} (48... b6 $5 {[%cal Rb6c5]}) 49. Reg1 {[%emt 0:01:27] [#] Black must now prevent e4.} Rg7 $1 {[%emt 0:00:08]} 50. Bd3 {[%emt 0:01:20]} Bd7 {[%emt 0:01:01] Weighted Error Value: White=0.12 (very precise) /Black=0.11 (very precise)} 1/2-1/2

[Event "Croatian-ch Youth U15 2022"]
[Site "Trogir"]
[Date "2022.06.24"]
[Round "4.3"]
[White "Grgantov, Marin"]
[Black "Mlinaric, Simun"]
[Result "1-0"]
[ECO "B23"]
[WhiteElo "2081"]
[BlackElo "1399"]
[Annotator "TA"]
[PlyCount "27"]
[EventDate "2022.06.22"]
[EventType "swiss"]
[EventCountry "CRO"]
[SourceTitle "playchess.com"]
[Source "ChessBase"]
[SourceQuality "1"]
[TimeControl "5400+30"]

{[%evp 11,27,14,10,15,0,-5,4,0,64,61,64,62,78,75,541,518,488,497]} 1. e4 {[%emt 0:00:08]} c5 {[%emt 0:00:04]} 2. Nc3 {[%emt 0:00:15]} Nc6 {[%emt 0:00:05]} 3. f4 {[%emt 0:00:16]} e6 {[%emt 0:00:11]} 4. Nf3 {[%emt 0:00:36][%cal Bg1f3,Bf3e5,Be5g6][%mdl 32]} d5 {[%emt 0:00:14]} 5. Bb5 {[%emt 0:04:50]} Nge7 {[%emt 0:00:49]} 6. exd5 {[%emt 0:06:07]} Nxd5 {[%emt 0:00:45]} 7. Bxc6+ {[%emt 0:04:18] B23: Closed Sicilian: Lines without g3.} bxc6 {[%emt 0:00:11]} 8. O-O {[%emt 0:09:19]} Be7 {[%emt 0:22:51]} 9. Ne5 {[%emt 0:09:24] The position is equal.} Qb6 {[%emt 0:12:24] [#]} (9... c4 $11) 10. Na4 $146 {[%emt 0:02:27]} ({Predecessor:} 10. d3 O-O 11. Rf2 Nxc3 12. bxc3 Rb8 13. Be3 Qc7 14. Qf3 Bd7 15. Rff1 Rb5 16. Qf2 {½-½ (38) Hrubcik,M (2000)-Kubikova,H (2140) Czechia 2003}) 10... Qc7 {[%emt 0:05:22]} 11. b3 {[%emt 0:10:10]} Nb6 {[%emt 0:04:58]} 12. Nc3 {[%emt 0:10:28] White is more active. Pair of Knights!} f6 $2 {[%emt 0:09:16][%mdl 8192] [#]} (12... O-O $16) 13. Qh5+ $18 {[%emt 0:01:27]} g6 {[%emt 0:06:24]} 14. Nxg6 $1 {[%emt 0:00:17] Black did not feel at home in the position after the opening.  Weighted Error Value: White=0.01 (flawless) /Black=1.26} 1-0

[Event "Croatian-ch Youth U15 2022"]
[Site "Trogir"]
[Date "2022.06.24"]
[Round "4.4"]
[White "Klanac, Lovre"]
[Black "Zadro, Matej"]
[Result "0-1"]
[ECO "A58"]
[WhiteElo "1624"]
[BlackElo "1861"]
[Annotator "NA RC"]
[PlyCount "56"]
[EventDate "2022.06.22"]
[EventType "swiss"]
[EventCountry "CRO"]
[SourceTitle "playchess.com"]
[Source "ChessBase"]
[SourceQuality "1"]
[TimeControl "5400+30"]

1. d4 {[%emt 0:00:04]} Nf6 {[%emt 0:00:02]} 2. Nf3 {[%emt 0:00:05]} c5 {[%emt 0:01:22]} 3. d5 {[%emt 0:00:08]} g6 {[%emt 0:00:39]} 4. c4 {[%emt 0:00:56]} b5 {[%emt 0:02:25]} 5. cxb5 {[%emt 0:00:09]} a6 {[%emt 0:00:02]} 6. bxa6 {[%emt 0:00:22]} Bg7 {[%emt 0:01:30]} 7. Nc3 {[%emt 0:00:12]} O-O {[%emt 0:01:10]} 8. e4 {[%emt 0:02:40]} Qa5 {[%emt 0:00:19]} 9. Bd2 {[%emt 0:01:53]} Bxa6 {[%emt 0:00:27]} 10. Qc2 {[%emt 0:02:54]} ({White should play} 10. Be2 $11) 10... Bxf1 {[%emt 0:19:59]} 11. Kxf1 {[%emt 0:00:34]} Na6 {[%emt 0:04:16]} 12. Ne2 {[%emt 0:21:31]} Qb5 {[%emt 0:23:51]} 13. a4 {[%emt 0:09:13]} Nb4 {[%emt 0:08:42]} 14. Bxb4 {[%emt 0:00:37]} Qxb4 {[%emt 0:00:15]} 15. Nd2 {[%emt 0:05:03]} (15. Nc3 $1 $11 {keeps the balance.}) 15... Rfb8 {[%emt 0:08:01]} 16. Ra2 {[%emt 0:04:15]} Bh6 {[%emt 0:15:51]} 17. Nc4 {[%emt 0:13:28]} Qb3 {[%emt 0:01:43]} 18. Qxb3 {[%emt 0:00:29]} Rxb3 {[%emt 0:00:03]} 19. Nc3 {[%emt 0:29:07]} Rb4 {[%emt 0:00:35]} 20. e5 {[%emt 0:04:25]} Nxd5 $11 {[%emt 0:08:36]} ({But not} 20... Rxc4 $6 21. exf6 exf6 22. a5 $11) (20... Ne8 $17 21. Ne3 Bg7) 21. Nxd5 {[%emt 0:00:10]} Rxc4 {[%emt 0:00:03]} 22. Ke2 {[%emt 0:01:05]} Rcxa4 {[%emt 0:00:50]} 23. Rxa4 {[%emt 0:00:08]} Rxa4 {[%emt 0:00:01]} 24. Nxe7+ {[%emt 0:01:23]} Kf8 {[%emt 0:00:04]} 25. Nc8 {[%emt 0:00:42]} Rb4 {[%emt 0:00:47]} 26. Rb1 {[%emt 0:00:37]} Bf4 {[%emt 0:00:09]} 27. Kd3 {[%emt 0:01:01]} Bxe5 {[%emt 0:00:09]} 28. Rc1 {[%emt 0:00:39]} d6 {[%emt 0:00:30]} 0-1

[Event "Croatian-ch Youth U15 2022"]
[Site "Trogir"]
[Date "2022.06.24"]
[Round "4.5"]
[White "Milinkovic, Dominik"]
[Black "Frouth, Vibor"]
[Result "0-1"]
[ECO "C45"]
[WhiteElo "1807"]
[BlackElo "1493"]
[Annotator "NA RC"]
[PlyCount "72"]
[EventDate "2022.06.22"]
[EventType "swiss"]
[EventCountry "CRO"]
[SourceTitle "playchess.com"]
[Source "ChessBase"]
[SourceQuality "1"]
[TimeControl "5400+30"]

1. e4 {[%emt 0:00:04]} e5 {[%emt 0:00:05]} 2. Nf3 {[%emt 0:00:04]} Nc6 {[%emt 0:00:05]} 3. d4 {[%emt 0:00:05]} exd4 {[%emt 0:00:05]} 4. Nxd4 {[%emt 0:00:06]} Bc5 {[%emt 0:00:12]} 5. Nb3 {[%emt 0:00:06]} Bb6 {[%emt 0:00:09]} 6. Nc3 {[%emt 0:00:09]} Nf6 {[%emt 0:00:14]} 7. Qe2 {[%emt 0:00:38]} O-O {[%emt 0:00:12]} 8. Be3 {[%emt 0:06:57]} Re8 {[%emt 0:03:00]} 9. f3 {[%emt 0:00:15]} Bxe3 {[%emt 0:02:11]} 10. Qxe3 {[%emt 0:00:07]} a5 {[%emt 0:02:51]} 11. O-O-O {[%emt 0:09:42]} b6 {[%emt 0:04:48]} (11... a4 $11 12. Nd4 a3) 12. Bb5 {[%emt 0:01:35]} Bb7 {[%emt 0:06:38]} 13. g4 {[%emt 0:09:16]} Qe7 {[%emt 0:03:14]} 14. h4 {[%emt 0:10:58]} Red8 {[%emt 0:04:37]} 15. g5 {[%emt 0:06:07]} Ne8 {[%emt 0:00:42]} 16. Nd5 {[%emt 0:07:00]} ({Better is} 16. Rhe1) 16... Qf8 {[%emt 0:00:36]} 17. e5 {[%emt 0:14:37]} ({Better is} 17. a3 $16) 17... Na7 {[%emt 0:10:26]} (17... a4 $142 $1 18. Nd2 Na7) 18. Nc3 {[%emt 0:08:08]} ({White must play} 18. Bc4 $16) 18... Nxb5 {[%emt 0:01:16]} 19. Nxb5 {[%emt 0:00:10]} a4 {[%emt 0:00:45]} 20. N3d4 {[%emt 0:03:49]} c6 {[%emt 0:03:04]} (20... g6 $14) 21. Nc3 {[%emt 0:04:49]} g6 {[%emt 0:01:42]} (21... a3 $16 {keeps fighting.}) 22. h5 {[%emt 0:02:24]} c5 {[%emt 0:00:44]} 23. hxg6 $2 {[%emt 0:03:36]} ({White has to play} 23. Ndb5 $16) 23... cxd4 {[%emt 0:00:35]} ({Much worse is} 23... fxg6 24. Ndb5 $11) 24. gxh7+ {[%emt 0:00:37]} Kh8 {[%emt 0:00:16]} 25. Rxd4 $15 {[%emt 0:03:25]} a3 {[%emt 0:02:35]} 26. b3 {[%emt 0:01:57]} Qc5 {[%emt 0:02:02]} ({Black should try} 26... Rac8 $15) 27. Ne2 $2 {[%emt 0:04:09]} ({Better is} 27. Na4 $11 Rxa4 28. bxa4) 27... Ng7 {[%emt 0:01:36]} 28. g6 {[%emt 0:00:50]} Rac8 {[%emt 0:02:01]} 29. c3 {[%emt 0:01:16] [#]} (29. c4 $142 fxg6 30. Nf4) 29... Ne6 $2 {[%emt 0:00:54]} ({Inferior is} 29... fxg6 30. Nf4 Rc6 31. b4) (29... Rf8 $1 $17 {keeps the pressure on.} 30. Kd2 fxg6) 30. b4 {[%emt 0:01:36]} Qf8 {[%emt 0:00:47]} ({Black should play} 30... Qc6 $17 31. g7+ Nxg7) 31. Rg4 $2 {[%emt 0:00:35]} (31. g7+ $11 {and White is okay.} Qxg7 32. Rg4 Qxg4 33. fxg4 Bxh1 34. Ng3) 31... fxg6 {[%emt 0:01:08]} 32. Rxg6 {[%emt 0:00:36]} Qxf3 {[%emt 0:02:14]} 33. Rg8+ {[%emt 0:00:38]} Rxg8 {[%emt 0:00:18]} 34. hxg8=Q+ {[%emt 0:00:11]} Kxg8 {[%emt 0:00:15]} 35. Rg1+ {[%emt 0:00:37]} Kh7 {[%emt 0:00:57]} 36. Qd4 {[%emt 0:00:30]} Nxd4 {[%emt 0:00:17]} 0-1

[Event "Croatian-ch Youth U15 2022"]
[Site "Trogir"]
[Date "2022.06.24"]
[Round "4.6"]
[White "Kos, Nikola"]
[Black "Horcicka, Jan"]
[Result "0-1"]
[ECO "C56"]
[WhiteElo "1523"]
[BlackElo "1804"]
[Annotator "NA RC"]
[PlyCount "98"]
[EventDate "2022.06.22"]
[EventType "swiss"]
[EventCountry "CRO"]
[SourceTitle "playchess.com"]
[Source "ChessBase"]
[SourceQuality "1"]
[TimeControl "5400+30"]

1. e4 {[%emt 0:00:11]} e5 {[%emt 0:00:04]} 2. Nf3 {[%emt 0:00:05]} Nc6 {[%emt 0:00:03]} 3. d4 {[%emt 0:00:06]} exd4 {[%emt 0:00:05]} 4. Bc4 {[%emt 0:00:04]} Nf6 {[%emt 0:00:02]} 5. e5 {[%emt 0:00:06]} d5 {[%emt 0:00:03]} 6. Bb5 {[%emt 0:00:04]} Ne4 {[%emt 0:00:04]} 7. Nxd4 {[%emt 0:00:08]} Bd7 {[%emt 0:00:03]} 8. Bxc6 {[%emt 0:00:24]} bxc6 {[%emt 0:00:03]} 9. O-O {[%emt 0:00:09]} Bc5 {[%emt 0:00:05]} 10. f3 {[%emt 0:00:13]} Ng5 {[%emt 0:00:03]} 11. f4 {[%emt 0:00:03]} Ne4 {[%emt 0:00:03]} 12. Be3 {[%emt 0:00:21]} Qb8 {[%emt 0:00:03]} 13. Qc1 {[%emt 0:07:49]} Bxd4 {[%emt 0:00:05]} 14. Bxd4 {[%emt 0:00:08]} c5 {[%emt 0:00:01]} 15. Bc3 {[%emt 0:05:18]} ({White should play} 15. Bf2 $11) 15... d4 {[%emt 0:07:21]} ({Better is} 15... Qb6 $15 16. Be1 O-O) 16. Be1 {[%emt 0:01:42]} Qb7 {[%emt 0:08:41]} 17. Nd2 {[%emt 0:10:20]} Bc6 {[%emt 0:04:17]} 18. Nxe4 {[%emt 0:01:05]} Bxe4 {[%emt 0:00:05]} 19. Rf2 {[%emt 0:00:54]} O-O {[%emt 0:00:19]} 20. b3 {[%emt 0:10:14]} f6 {[%emt 0:01:42]} 21. Re2 {[%emt 0:02:52]} fxe5 {[%emt 0:23:28]} 22. fxe5 {[%emt 0:02:05]} Qa6 {[%emt 0:00:17]} 23. Qd2 {[%emt 0:08:27]} Bxg2 {[%emt 0:04:46]} 24. Bg3 $2 {[%emt 0:10:08]} (24. Qd3 $17 {was the crucial defense.} Bh3 25. Bh4) 24... Bh3 {[%emt 0:02:23]} 25. Qd3 {[%emt 0:04:40]} Qc6 {[%emt 0:21:54]} 26. Qe4 {[%emt 0:04:15]} Qe6 {[%emt 0:04:15]} 27. Rf2 {[%emt 0:07:02]} Rxf2 {[%emt 0:02:05]} 28. Bxf2 {[%emt 0:02:11]} Rf8 {[%emt 0:00:20]} 29. Bg3 {[%emt 0:00:19]} Qa6 {[%emt 0:12:24]} 30. Qd3 {[%emt 0:01:38]} Qc6 {[%emt 0:05:47]} 31. Qe2 {[%emt 0:00:37]} Kh8 {[%emt 0:04:34]} 32. Re1 {[%emt 0:04:53]} Rf3 {[%emt 0:00:27]} 33. Qd2 {[%emt 0:06:32]} Qe4 {[%emt 0:00:35]} 34. Qd3 $2 {[%emt 0:09:16]} (34. e6 Qxe6 35. c3) 34... Qd5 {[%emt 0:00:31]} 35. Qd2 {[%emt 0:00:16]} Qe4 {[%emt 0:00:28]} 36. Qd3 {[%emt 0:00:04]} Qc6 {[%emt 0:00:32]} 37. Qd2 {[%emt 0:00:06]} Qa6 {[%emt 0:00:29]} 38. Qd1 {[%emt 0:00:56]} Qc6 {[%emt 0:00:32]} 39. Qd2 {[%emt 0:00:10]} h5 {[%emt 0:00:30]} 40. Bh4 {[%emt 0:03:01]} Qe4 {[%emt 0:00:30]} 41. Bf2 {[%emt 0:01:34]} Qg4+ {[%emt 0:00:26]} 42. Bg3 {[%emt 0:00:25]} h4 {[%emt 0:00:10]} (42... d3 $142 43. Kh1 h4 44. Kg1 hxg3 45. hxg3 Rxg3+ 46. Kh1 Qf3+ 47. Kh2 Rg2+ 48. Kh1 Rxd2+ 49. Kg1 Qg2#) 43. Qe2 {[%emt 0:00:38]} hxg3 {[%emt 0:00:36]} 44. hxg3 {[%emt 0:00:17]} Qxg3+ {[%emt 0:00:20]} 45. Kh1 {[%emt 0:00:05]} Bg2+ {[%emt 0:00:11]} 46. Qxg2 {[%emt 0:00:15]} Qxe1+ {[%emt 0:00:05]} 47. Kh2 {[%emt 0:00:06]} Qxe5+ {[%emt 0:00:06]} 48. Kh1 {[%emt 0:00:08]} Qe1+ {[%emt 0:00:07]} 49. Kh2 {[%emt 0:00:06]} Rf2 {[%emt 0:00:04]} 0-1

[Event "Croatian-ch Youth U15 2022"]
[Site "Trogir"]
[Date "2022.06.24"]
[Round "4.7"]
[White "Friedrich, Ivan"]
[Black "Franc, Borna"]
[Result "0-1"]
[ECO "D36"]
[WhiteElo "1456"]
[BlackElo "2032"]
[Annotator "TA"]
[PlyCount "78"]
[EventDate "2022.06.22"]
[EventType "swiss"]
[EventCountry "CRO"]
[SourceTitle "playchess.com"]
[Source "ChessBase"]
[SourceQuality "1"]
[TimeControl "5400+30"]

{[%evp 16,77,13,13,39,12,19,20,25,2,58,42,40,47,60,40,29,30,46,48,35,1,27,41,41,10,12,-89,-84,-132,4,17,16,0,0,0,72,-4,87,95,198,178,180,178,165,172,123,-5,-11,-8,-8,-8,0,0,0,-29995,-29996,-29996,-1759,-29997,-29998,-29998,-29999,-29999]} 1. d4 {[%emt 0:00:03]} Nf6 {[%emt 0:09:36]} 2. c4 {[%emt 0:00:04]} e6 {[%emt 0:00:03]} 3. Nc3 {[%emt 0:00:03]} d5 {[%emt 0:00:04]} 4. cxd5 {[%emt 0:00:08]} exd5 {[%emt 0:00:04]} 5. Bg5 {[%emt 0:00:06]} Be7 {[%emt 0:00:05]} 6. Qc2 {[%emt 0:00:07]} c6 {[%emt 0:00:13]} 7. e3 {[%emt 0:00:05]} h6 {[%emt 0:00:35]} 8. Bh4 {[%emt 0:00:04]} O-O {[%emt 0:00:20]} 9. Bd3 {[%emt 0:00:03]} b5 {[%emt 0:01:00] D36: Queen's Gambit Declined: Exchange Variation: Main line (5 Bg5 c6 6 Qc2).} 10. Nge2 {[%emt 0:01:17]} Bb7 {[%emt 0:04:08]} 11. O-O {[%emt 0:00:47]} Nbd7 {[%emt 0:00:21] The position is equal.} 12. f3 {[%emt 0:04:47] [#]} Ne8 $146 {[%emt 0:04:28]} (12... Re8 $11) ({Predecessor:} 12... a6 13. e4 dxe4 14. fxe4 c5 15. dxc5 Nxc5 16. Bxf6 Bxf6 17. Rad1 Qb6 18. Kh1 Rac8 {½-½ (84) Lee,R (1615)-Li,Y (1185) Shenzhen 2019}) 13. Bxe7 {[%emt 0:02:20]} Qxe7 {[%emt 0:00:04]} 14. e4 {[%emt 0:01:50]} a6 {[%emt 0:00:12]} 15. Ng3 {[%emt 0:31:12]} dxe4 {[%emt 0:04:19]} 16. fxe4 {[%emt 0:01:07] Threatens to win with Nf5.} c5 {[%emt 0:00:21]} 17. Nf5 {[%emt 0:01:16]} Qe6 {[%emt 0:00:15]} 18. d5 {[%emt 0:00:53]} Qe5 {[%emt 0:00:06]} 19. Qe2 {[%emt 0:02:22][%cal Of5h6] Black must now prevent Nxh6+!} Nef6 {[%emt 0:03:02]} 20. Rf3 {[%emt 0:03:57] next Rg3 is good for White.} g6 {[%emt 0:05:25]} ({But not} 20... Ng4 21. Rg3 h5 22. Qd2 $14) 21. Rg3 {[%emt 0:19:15] [#]} (21. Qe3 $11) 21... Kh7 $1 $17 {[%emt 0:00:44] Strongly threatening ...c4.} 22. Nh4 {[%emt 0:00:35]} (22. Rf1 $142) 22... Nh5 {[%emt 0:01:38]} (22... c4 $17 23. Bc2 b4) 23. Re3 $11 {[%emt 0:04:11]} Nf4 {[%emt 0:13:43]} 24. Qf2 {[%emt 0:03:34]} Nf6 {[%emt 0:02:34]} 25. Nf3 $36 {[%emt 0:01:17][%mdl 2048] White has the initiative.} Qh5 {[%emt 0:02:23]} (25... Qe7 $11 {remains equal.} 26. Nd2 Nxd3 27. Rxd3 Ng4) 26. Qg3 {[%emt 0:02:34]} (26. Ne1 $16 Qe5 27. Rf3) 26... Nxd3 {[%emt 0:01:53]} (26... Qg4 $11 {keeps the balance.}) 27. Rxd3 $16 {[%emt 0:00:07]} b4 {[%emt 0:00:09]} (27... Qg4 $16) 28. Qd6 {[%emt 0:02:17]} Kg7 {[%emt 0:09:22]} 29. e5 {[%emt 0:01:10]} Ng4 {[%emt 0:00:31] aiming for ...Qf5.} 30. Ne4 {[%emt 0:00:57] And now Ng3 would win.} Qf5 {[%emt 0:00:11]} 31. Nxc5 {[%emt 0:01:25]} (31. Re1 $16) 31... Rad8 $1 $11 {[%emt 0:00:24] Chess con chili.} 32. Qb6 {[%emt 0:01:54]} Rxd5 {[%emt 0:03:08]} 33. Qxb7 {[%emt 0:00:41]} Rxd3 {[%emt 0:00:06]} 34. Nxd3 {[%emt 0:00:08]} Qxd3 {[%emt 0:00:03]} 35. Qxb4 $2 {[%emt 0:02:29][%mdl 8192]} (35. Re1 $11) 35... Qe3+ {[%emt 0:00:06]} 36. Kh1 {[%emt 0:00:14]} Nf2+ {[%emt 0:00:03][%cal Bg4f2,Bf2h3,Bh3f2][%mdl 32]} 37. Kg1 {[%emt 0:00:25]} Nh3+ {[%emt 0:00:03][%mdl 64] Discovered Attack (Double check). Black mates.} 38. Kh1 {[%emt 0:00:10] [#]} Qg1+ $3 {[%emt 0:00:03][%mdl 512]} 39. Rxg1 {[%emt 0:00:06]} (39. Nxg1 Nf2#) 39... Nf2# {[%emt 0:00:06] Weighted Error Value: White=0.52/Black=0.21 (precise)} 0-1

[Event "Croatian-ch Youth U15 2022"]
[Site "Trogir"]
[Date "2022.06.24"]
[Round "4.8"]
[White "Jakovic, Roko"]
[Black "Veocic, Noa"]
[Result "1-0"]
[ECO "D27"]
[WhiteElo "1944"]
[BlackElo "1418"]
[Annotator "TA"]
[PlyCount "41"]
[EventDate "2022.06.22"]
[EventType "swiss"]
[EventCountry "CRO"]
[SourceTitle "playchess.com"]
[Source "ChessBase"]
[SourceQuality "1"]
[TimeControl "5400+30"]

{[%evp 16,41,2,14,33,32,29,44,193,123,97,116,554,533,579,601,599,575,564,592,577,585,577,555,1318,1131,1301,1247]} 1. d4 {[%emt 0:00:07]} d5 {[%emt 0:00:03]} 2. c4 {[%emt 0:00:07]} dxc4 {[%emt 0:00:07]} 3. Nc3 {[%emt 0:00:33]} Nf6 {[%emt 0:00:23]} 4. e3 {[%emt 0:00:45][%cal Be2e3,Be3d4,Bd4d5,Bd5e6,Be6f7][%mdl 32]} e6 {[%emt 0:00:07]} 5. Bxc4 {[%emt 0:00:26]} c5 {[%emt 0:00:07]} 6. Nf3 {[%emt 0:01:05]} a6 {[%emt 0:00:08]} 7. a4 {[%emt 0:05:18]} cxd4 {[%emt 0:04:59]} 8. exd4 {[%emt 0:00:36]} Nc6 {[%emt 0:00:31]} 9. O-O {[%emt 0:01:47]} Nb4 {[%emt 0:02:01] Against d5. D27: Queen's Gambit Accepted: Classical main line: 7 e4!? and 7 a4.} 10. Qb3 {[%emt 0:06:09]} Be7 {[%emt 0:06:37]} 11. Bg5 {[%emt 0:04:11] [#]} Nd7 $146 {[%emt 0:25:44] [#]} (11... Nc6 $14) ({Predecessor:} 11... Nbd5 12. Bxd5 Nxd5 13. Nxd5 Qxd5 14. Qxd5 exd5 15. Bxe7 Kxe7 16. Rac1 Kd6 17. Ne5 Be6 18. a5 Rac8 19. Nd3 Rc4 20. Nc5 Rb8 21. Rfd1 Rb4 22. Rd2 Rb5 23. Ra1 b6 24. axb6 R8xb6 {0-1 (24) Boruchovsky,A (2541)-Montoliu Cervero,F (2393) Chess.com INT 2020}) 12. Bxe7 {[%emt 0:09:35]} (12. d5 $1 $18 {[%cal Rd5e6]} Nxd5 13. Bxd5 (13. Nxd5 Bxg5 14. Nxg5 O-O $16) 13... Bxg5 14. Bxe6 (14. Bxb7 Rb8 $17) (14. Nxg5 Qxg5 15. f4 Qf5 $11) 14... fxe6 15. Qxe6+ Qe7 16. Rfe1 (16. Nxg5 Qxe6 17. Nxe6 Kf7 $16) 16... Qxe6 17. Rxe6+ Kf8 18. Nxg5) 12... Qxe7 $16 {[%emt 0:00:14]} 13. d5 {[%emt 0:01:27] White is more active.} O-O $2 {[%emt 0:03:54][%mdl 8192]} (13... Nb6 $16 {is tougher.}) 14. dxe6 $18 {[%emt 0:02:09] White is clearly winning.} Nb6 {[%emt 0:04:09]} 15. exf7+ {[%emt 0:03:00]} Kh8 {[%emt 0:00:17]} 16. Rfe1 {[%emt 0:04:23]} Qc5 {[%emt 0:03:59] [#]} 17. Re8 $1 {[%emt 0:07:36] aiming for Ne4.} Bd7 {[%emt 0:01:31]} 18. Rxa8 {[%emt 0:00:42]} Rxa8 {[%emt 0:00:37]} 19. Be6 {[%emt 0:03:10] And now Ne4 would win.} g6 {[%emt 0:11:59]} 20. Bxd7 {[%emt 0:02:12] Be8 is the strong threat.} Nxd7 {[%emt 0:00:21]} 21. Ne4 {[%emt 0:00:31] Weighted Error Value: White=0.09 (flawless) /Black=1.20} 1-0